bitfinex/quotes_BTCUSD_20240620
["timestamp","ask_amount","ask_price","bid_price","bid_amount"]
[1718925602407,0.0746,65121.0,65120.0,0.03656454]
[1718925604747,0.0746,65121.0,65120.0,0.03956454]
[1718925605352,0.0746,65121.0,65120.0,0.04056454]
[1718925606369,0.0746,65121.0,65120.0,0.06056454]
[1718925608426,0.0746,65121.0,65120.0,0.04056454]
[1718925610691,0.0746,65121.0,65118.0,0.03656454]
[1718925612232,0.0746,65121.0,65118.0,0.03756454]
[1718925612435,0.0746,65121.0,65118.0,0.04056454]
[1718925617527,0.10172898,65121.0,65118.0,0.04056454]
[1718925618090,0.14601173,65121.0,65118.0,0.04056454]
[1718925618410,0.14601173,65121.0,65118.0,0.03756454]
[1718925618910,0.14601173,65121.0,65118.0,0.03656454]
[1718925619257,0.14701173,65121.0,65118.0,0.03956454]
[1718925619464,0.07241173,65121.0,65118.0,0.03956454]
[1718925619615,0.0746,65119.0,65118.0,0.03956454]
[1718925620050,0.0746,65119.0,65118.0,0.04056454]
[1718925620852,0.0746,65119.0,65118.0,0.03956454]
[1718925621457,0.0746,65119.0,65118.0,0.03656454]
[1718925621871,0.0756,65119.0,65118.0,0.03956454]
[1718925622422,0.0766,65119.0,65118.0,0.04056454]
[1718925624386,0.0766,65119.0,65118.0,0.04151054]
[1718925625397,0.0756,65119.0,65118.0,0.03851054]
[1718925625603,0.0746,65119.0,65118.0,0.03751054]
[1718925625813,0.0746,65119.0,65118.0,0.04051054]
[1718925626029,0.0746,65119.0,65118.0,0.03751054]
[1718925626216,0.0746,65119.0,65118.0,0.03851054]
[1718925626418,0.0746,65119.0,65118.0,0.04151054]
[1718925626937,0.0746,65119.0,65118.0,0.04051054]
[1718925627112,0.0746,65119.0,65118.0,0.04151054]
[1718925628578,0.07141173,65121.0,65118.0,0.04151054]
[1718925628782,0.0746,65119.0,65118.0,0.04151054]
[1718925629536,0.0746,65119.0,65118.0,0.04051054]
[1718925629922,0.0746,65119.0,65118.0,0.04151054]
[1718925630346,0.0746,65119.0,65118.0,0.04051054]
[1718925630563,0.0746,65119.0,65118.0,0.003946]
[1718925630763,0.0746,65119.0,65118.0,0.004946]
[1718925631741,0.0746,65119.0,65118.0,0.001946]
[1718925632731,0.0746,65119.0,65118.0,0.004946]
[1718925632859,0.0746,65119.0,65118.0,0.001946]
[1718925633075,0.0746,65119.0,65118.0,0.004946]
[1718925634773,0.0746,65119.0,65118.0,0.001946]
[1718925634978,0.0746,65119.0,65118.0,0.000946]
[1718925635176,0.0746,65119.0,65118.0,0.003946]
[1718925636414,0.0746,65119.0,65118.0,0.004946]
[1718925638072,0.0746,65119.0,65118.0,0.003946]
[1718925638483,0.0746,65119.0,65118.0,0.000946]
[1718925638851,0.0746,65119.0,65118.0,0.002946]
[1718925639759,0.10278766,65119.0,65118.0,0.003946]
[1718925640112,0.11188928,65119.0,65118.0,0.003946]
[1718925640639,0.15655035,65119.0,65118.0,0.003946]
[1718925644870,0.08195035,65119.0,65118.0,0.003946]
[1718925645084,0.15655035,65119.0,65118.0,0.003946]
[1718925645756,0.15655035,65119.0,65118.0,0.001946]
[1718925646541,0.16191476,65119.0,65118.0,0.000946]
[1718925647057,0.16291476,65119.0,65118.0,0.000946]
[1718925649063,0.16291476,65119.0,65116.0,0.123]
[1718925649064,0.16291476,65119.0,65116.0,0.11590758]
[1718925649790,0.14844873,65119.0,65116.0,0.11590758]
[1718925649929,0.14744873,65119.0,65116.0,0.11590758]
[1718925650127,0.0144618,65118.0,65116.0,0.11590758]
[1718925650329,0.0144618,65118.0,65115.0,0.000946]
[1718925650563,0.0746,65116.0,65115.0,0.000946]
[1718925650968,0.08905755,65116.0,65115.0,0.000946]
[1718925652118,0.08905755,65116.0,65115.0,0.1135]
[1718925652316,0.08905755,65116.0,65115.0,0.1155]
[1718925652875,0.09105755,65116.0,65115.0,0.1155]
[1718925653002,0.09105755,65116.0,65115.0,0.11415]
[1718925653217,0.09105755,65116.0,65115.0,0.11067]
[1718925653397,0.09405755,65116.0,65115.0,0.11067]
[1718925653858,0.11074818,65116.0,65115.0,0.11067]
[1718925653989,0.10774818,65116.0,65115.0,0.11067]
[1718925654382,0.11074818,65116.0,65115.0,0.11067]
[1718925655249,0.11074818,65116.0,65115.0,0.002]
[1718925655605,0.11074818,65116.0,65115.0,0.0007]
[1718925655953,0.11074818,65116.0,65114.0,1e-08]
[1718925656174,0.11074818,65116.0,65114.0,0.12150001]
[1718925656740,0.10774818,65116.0,65114.0,0.12150001]
[1718925656974,0.10774818,65116.0,65114.0,0.12023001]
[1718925657186,0.01805969,65115.0,65114.0,0.12023001]
[1718925657565,0.03251512,65115.0,65114.0,0.21108061]
[1718925658449,0.03451512,65115.0,65114.0,0.21108061]
[1718925659007,0.03551512,65115.0,65114.0,0.21108061]
[1718925659402,0.03451512,65115.0,65114.0,0.21108061]
[1718925659609,0.03751512,65115.0,65114.0,0.20734061]
[1718925659848,0.03551512,65115.0,65114.0,0.20734061]
[1718925660147,0.03851512,65115.0,65114.0,0.19831061]
[1718925660759,0.04807873,65115.0,65114.0,0.19831061]
[1718925660912,0.04807873,65115.0,65114.0,0.17156061]
[1718925661742,0.16343546,65130.0,65115.0,0.10784037]
[1718925661943,0.0746,65116.0,65115.0,0.10784037]
[1718925662142,0.08664831,65116.0,65115.0,0.10784037]
[1718925662673,0.08664831,65116.0,65115.0,0.10390037]
[1718925662871,0.08664831,65116.0,65115.0,0.03155865]
[1718925663174,0.08664831,65116.0,65114.0,0.17156061]
[1718925663402,0.09064831,65116.0,65114.0,0.16028926]
[1718925664546,0.09064831,65116.0,65114.0,0.0947]
[1718925664547,0.09464831,65116.0,65114.0,0.0947]
[1718925664867,0.09064831,65116.0,65114.0,0.0947]
[1718925665267,0.09464831,65116.0,65114.0,0.0947]
[1718925665853,0.00956391,65115.0,65114.0,0.0947]
[1718925666055,0.00956391,65115.0,65111.0,0.094]
[1718925666258,0.0746,65112.0,65111.0,0.094]
[1718925666499,0.08416391,65112.0,65111.0,0.094]
[1718925666705,0.09620372,65112.0,65111.0,0.094]
[1718925667663,0.09620372,65112.0,65111.0,0.2125]
[1718925667866,0.09620372,65112.0,65111.0,0.2135]
[1718925668480,0.08416385,65112.0,65111.0,0.2135]
[1718925668658,0.09620366,65112.0,65111.0,0.2135]
[1718925668861,0.08416385,65112.0,65111.0,0.2155]
[1718925669063,0.09620366,65112.0,65111.0,0.2155]
[1718925669267,0.08416385,65112.0,65111.0,0.2155]
[1718925670155,0.08408665,65112.0,65111.0,0.2155]
[1718925670529,0.09269532,65112.0,65107.0,0.00948199]
[1718925670732,0.09269532,65112.0,65101.0,0.1889]
[1718925670733,0.0746,65108.0,65101.0,0.1889]
[1718925671028,0.0746,65104.0,65101.0,0.18037123]
[1718925671350,0.00956385,65103.0,65101.0,0.18037123]
[1718925671549,0.02158424,65102.0,65101.0,0.08037123]
[1718925671691,0.02408759,65102.0,65101.0,0.08037123]
[1718925672348,0.0866672,65102.0,65101.0,0.08037123]
[1718925674498,0.0876672,65102.0,65101.0,0.08137123]
[1718925674849,0.09968744,65102.0,65101.0,0.08137123]
[1718925675056,0.08762024,65102.0,65101.0,0.08137123]
[1718925675256,0.09981716,65102.0,65101.0,0.08137123]
[1718925675702,0.09981716,65102.0,65101.0,0.11793577]
[1718925676081,0.09881716,65102.0,65101.0,0.11693577]
[1718925676285,0.09981716,65102.0,65101.0,0.11793577]
[1718925676481,0.10081716,65102.0,65101.0,0.11693577]
[1718925676886,0.10181716,65102.0,65101.0,0.08037123]
[1718925677095,0.09981716,65102.0,65101.0,0.08037123]
[1718925677463,0.10181716,65102.0,65101.0,0.08037123]
[1718925677901,0.02721716,65102.0,65101.0,0.11693577]
[1718925678062,0.10181716,65102.0,65101.0,0.11693577]
[1718925678261,0.08979692,65102.0,65101.0,0.11693577]
[1718925678463,0.14322653,65102.0,65101.0,0.11693577]
[1718925681588,0.08962024,65102.0,65101.0,0.11693577]
[1718925681789,0.15047654,65102.0,65101.0,0.11693577]
[1718925682842,0.17754954,65102.0,65101.0,0.11693577]
[1718925684895,0.17734293,65102.0,65101.0,0.11693577]
[1718925687041,0.19930073,65102.0,65101.0,0.11693577]
[1718925687586,0.17734293,65102.0,65101.0,0.11693577]
[1718925687719,0.17734293,65102.0,65101.0,0.23163577]
[1718925688129,0.1029314,65102.0,65101.0,0.25163577]
[1718925688448,0.1504584,65102.0,65101.0,0.35163577]
[1718925688855,0.0758584,65102.0,65101.0,0.35163577]
[1718925689033,0.1504584,65102.0,65101.0,0.35163577]
[1718925689453,0.1504584,65102.0,65101.0,0.35258177]
[1718925691006,0.0758584,65102.0,65101.0,0.35258177]
[1718925691210,0.08962024,65102.0,65101.0,0.35258177]
[1718925691411,0.15100093,65102.0,65101.0,0.35258177]
[1718925692206,0.15100093,65102.0,65101.0,0.36258177]
[1718925692553,0.14900093,65102.0,65101.0,0.35801948]
[1718925692771,0.07440093,65102.0,65101.0,0.35901948]
[1718925692970,0.14900093,65102.0,65101.0,0.35901948]
[1718925693149,0.14800093,65102.0,65101.0,0.35901948]
[1718925693517,0.14800093,65102.0,65101.0,0.36001948]
[1718925694168,0.07340093,65102.0,65101.0,0.5125806]
[1718925694573,0.04223504,65104.0,65103.0,0.28886454]
[1718925694795,0.10425899,65104.0,65103.0,0.44142566]
[1718925694911,0.07403309,65104.0,65103.0,0.493691]
[1718925695114,0.06202395,65104.0,65103.0,0.493691]
[1718925695576,0.06202395,65104.0,65103.0,0.587891]
[1718925695741,0.06202395,65104.0,65103.0,0.53562566]
[1718925696739,0.0746,65111.0,65110.0,0.06656454]
[1718925696943,0.14176032,65111.0,65110.0,0.36566454]
[1718925697142,0.14176032,65111.0,65110.0,0.37566454]
[1718925697345,0.12974961,65111.0,65110.0,0.37566454]
[1718925697711,0.18483049,65111.0,65110.0,0.37566454]
[1718925698266,0.11023049,65111.0,65110.0,0.52822566]
[1718925698483,0.06716031,65111.0,65110.0,0.52822566]
[1718925698809,0.06718395,65111.0,65110.0,0.52822566]
[1718925699190,0.06718395,65111.0,65110.0,0.53022566]
[1718925699391,0.06718395,65111.0,65110.0,0.53322566]
[1718925699925,0.06718395,65111.0,65110.0,0.52822566]
[1718925700127,0.06918395,65111.0,65110.0,0.53522566]
[1718925700711,0.06775794,65111.0,65110.0,0.53522566]
[1718925700882,0.05372359,65111.0,65110.0,0.53522566]
[1718925701083,0.0601,65139.0,65132.0,0.03656454]
[1718925701279,0.0746,65133.0,65132.0,0.03656454]
[1718925701487,0.12846657,65133.0,65132.0,0.03656454]
[1718925703271,0.13246657,65133.0,65132.0,0.03756454]
[1718925703455,0.0786,65133.0,65132.0,0.03756454]
[1718925703653,0.12400897,65133.0,65132.0,0.03756454]
[1718925703788,0.12000897,65133.0,65132.0,0.03656454]
[1718925703989,0.11992104,65133.0,65132.0,0.03656454]
[1718925705311,0.12292104,65133.0,65132.0,0.03656454]
[1718925707156,0.11513824,65133.0,65132.0,0.03656454]
[1718925709966,0.11513824,65133.0,65130.0,0.1]
[1718925710175,0.03753824,65132.0,65130.0,0.1]
[1718925710299,0.03774968,65131.0,65130.0,0.1]
[1718925710501,0.01007012,65131.0,65130.0,0.1]
[1718925710705,0.0478198,65131.0,65130.0,0.1]
[1718925710928,0.0478198,65131.0,65130.0,0.13656454]
[1718925711148,0.0478198,65131.0,65130.0,0.1]
[1718925711353,0.0478198,65131.0,65130.0,0.13656454]
[1718925711680,0.0478198,65131.0,65130.0,0.1]
[1718925712723,0.0488198,65131.0,65130.0,0.1]
[1718925713694,0.04831256,65131.0,65130.0,0.1]
[1718925714899,0.04831256,65131.0,65127.0,0.1]
[1718925715098,0.1247,65129.0,65126.0,0.03656454]
[1718925715297,0.0746,65127.0,65126.0,0.03656454]
[1718925715564,0.11184244,65127.0,65126.0,0.03656454]
[1718925715769,0.1219042,65127.0,65126.0,0.05656454]
[1718925715917,0.1219042,65127.0,65126.0,0.03656454]
[1718925716806,0.12197655,65127.0,65126.0,0.03656454]
[1718925717007,0.12197655,65127.0,65126.0,0.04156454]
[1718925718512,0.12197655,65127.0,65126.0,0.04556454]
[1718925719259,0.12197655,65127.0,65126.0,0.04156454]
[1718925719388,0.12197655,65127.0,65126.0,0.03656454]
[1718925719595,0.12397655,65127.0,65126.0,0.03656454]
[1718925719813,0.12597655,65127.0,65126.0,0.03656454]
[1718925720025,0.08466176,65127.0,65126.0,0.03656454]
[1718925720247,0.12187802,65127.0,65126.0,0.03656454]
[1718925720392,0.12587802,65127.0,65126.0,0.03656454]
[1718925720798,0.15093582,65127.0,65126.0,0.03656454]
[1718925721883,0.15179582,65127.0,65126.0,0.03656454]
[1718925723256,0.15123312,65127.0,65126.0,0.03656454]
[1718925726064,0.05157532,65127.0,65126.0,0.03656454]
[1718925726337,0.08952176,65127.0,65126.0,0.25676454]
[1718925726662,0.1262872,65127.0,65126.0,0.25676454]
[1718925726805,0.0516872,65127.0,65126.0,0.25676454]
[1718925726997,0.0516872,65127.0,65126.0,0.27676454]
[1718925726998,0.1242872,65127.0,65126.0,0.27676454]
[1718925727191,0.0496872,65127.0,65126.0,0.27676454]
[1718925727396,0.03962544,65127.0,65126.0,0.27676454]
[1718925727638,0.11422544,65127.0,65126.0,0.27676454]
[1718925728163,0.12428756,65127.0,65126.0,0.27676454]
[1718925728375,0.12228756,65127.0,65126.0,0.27676454]
[1718925728915,0.12428756,65127.0,65126.0,0.27676454]
[1718925729572,0.12375277,65127.0,65126.0,0.27676454]
[1718925729902,0.12475277,65127.0,65126.0,0.27676454]
[1718925730248,0.16771501,65127.0,65126.0,0.27676454]
[1718925730638,0.16771501,65127.0,65126.0,0.27876454]
[1718925731620,0.16688956,65127.0,65126.0,0.27876454]
[1718925731979,0.16688956,65127.0,65126.0,0.28076454]
[1718925732601,0.16688956,65127.0,65126.0,0.27876454]
[1718925732806,0.16688741,65127.0,65126.0,0.27876454]
[1718925732988,0.16688741,65127.0,65126.0,0.28076454]
[1718925736065,0.16659553,65127.0,65126.0,0.28076454]
[1718925737217,0.09199553,65127.0,65126.0,0.38426454]
[1718925737364,0.16659553,65127.0,65126.0,0.38426454]
[1718925739403,0.12948436,65127.0,65126.0,0.38426454]
[1718925739610,0.16693744,65127.0,65126.0,0.38426454]
[1718925740989,0.09233744,65127.0,65126.0,0.38426454]
[1718925741195,0.16693744,65127.0,65126.0,0.38426454]
[1718925742659,0.16681107,65127.0,65126.0,0.38426454]
[1718925745694,0.16633445,65127.0,65126.0,0.38426454]
[1718925748450,0.16633445,65127.0,65126.0,0.28566454]
[1718925748656,0.16633445,65127.0,65126.0,0.104]
[1718925748860,0.19468436,65127.0,65126.0,0.004]
[1718925749097,0.23088473,65127.0,65126.0,0.004]
[1718925750398,0.23088473,65127.0,65126.0,0.05856454]
[1718925750572,0.23088473,65127.0,65126.0,0.06156454]
[1718925750978,0.23088473,65127.0,65126.0,0.05956454]
[1718925752212,0.23182446,65127.0,65126.0,0.05956454]
[1718925752501,0.19469645,65127.0,65126.0,0.05956454]
[1718925752703,0.23185598,65127.0,65126.0,0.05956454]
[1718925753130,0.23385598,65127.0,65126.0,0.05956454]
[1718925753487,0.23185598,65127.0,65126.0,0.05956454]
[1718925754458,0.055,65125.0,65116.0,0.25796454]
[1718925754689,0.19748158,65127.0,65116.0,0.13656454]
[1718925754690,0.0746,65117.0,65116.0,0.13656454]
[1718925754904,0.11175953,65117.0,65116.0,0.15656454]
[1718925755104,0.11175953,65117.0,65116.0,0.13656454]
[1718925755331,0.11589425,65117.0,65116.0,0.03656454]
[1718925755451,0.11589448,65117.0,65116.0,0.05656454]
[1718925755657,0.11589448,65117.0,65116.0,0.03656454]
[1718925757177,0.11589448,65117.0,65116.0,0.04156454]
[1718925757310,0.11589448,65117.0,65116.0,0.05656454]
[1718925757496,0.11589448,65117.0,65116.0,0.03656454]
[1718925757707,0.11589448,65117.0,65116.0,0.05056454]
[1718925757909,0.11589448,65117.0,65116.0,0.04756454]
[1718925758530,0.11589448,65117.0,65116.0,0.03656454]
[1718925758531,0.11584966,65117.0,65116.0,0.03656454]
[1718925759550,0.11584966,65117.0,65116.0,0.04156454]
[1718925759755,0.11584966,65117.0,65116.0,0.05656454]
[1718925760157,0.11584966,65117.0,65116.0,0.06056454]
[1718925760783,0.11684966,65117.0,65116.0,0.06056454]
[1718925761319,0.12753463,65117.0,65116.0,0.06056454]
[1718925761497,0.11677153,65117.0,65116.0,0.06056454]
[1718925761735,0.1171458,65117.0,65116.0,0.004]
[1718925761925,0.2285458,65117.0,65116.0,0.004]
[1718925762145,0.1539458,65117.0,65116.0,0.004]
[1718925762319,0.1721458,65117.0,65116.0,0.004]
[1718925762494,0.1171458,65117.0,65116.0,0.004]
[1718925763675,0.11691892,65117.0,65116.0,0.004]
[1718925764757,0.11691892,65117.0,65116.0,0.06056454]
[1718925765014,0.11691892,65117.0,65116.0,0.04056454]
[1718925766164,0.05313625,65127.0,65116.0,0.04056454]
[1718925766275,0.0829683,65117.0,65116.0,0.06056454]
[1718925766708,0.0746,65117.0,65116.0,0.06056454]
[1718925767649,0.0829683,65117.0,65116.0,0.06156454]
[1718925767857,0.0746,65117.0,65116.0,0.04156454]
[1718925768065,0.0746,65117.0,65116.0,0.004]
[1718925768268,0.08295659,65117.0,65116.0,0.004]
[1718925768482,0.08295659,65117.0,65105.0,0.03656454]
[1718925768483,0.09225225,65117.0,65105.0,0.03656454]
[1718925768688,0.09225225,65117.0,65100.0,0.28258172]
[1718925768689,0.01765225,65117.0,65106.0,0.03656454]
[1718925768890,0.15856,65116.0,65105.0,0.03656454]
[1718925769080,0.00831761,65115.0,65106.0,0.1]
[1718925769265,0.0746,65107.0,65106.0,0.13656454]
[1718925769464,0.0746,65107.0,65099.0,0.13656454]
[1718925769668,0.001,65117.0,65101.0,0.03751054]
[1718925769669,0.0746,65102.0,65101.0,0.03751054]
[1718925770738,0.15256112,65116.0,65104.0,0.03656454]
[1718925770869,1.540159,65115.0,65106.0,0.03656454]
[1718925771052,0.0746,65107.0,65105.0,0.03656454]
[1718925771254,0.0746,65106.0,65104.0,0.03656454]
[1718925772268,0.15256112,65114.0,65104.0,0.03656454]
[1718925772490,0.0746,65105.0,65104.0,0.03656454]
[1718925772766,0.0746,65105.0,65104.0,0.04556454]
[1718925774196,0.0756,65105.0,65104.0,0.04656454]
[1718925774856,0.0756,65105.0,65104.0,0.01]
[1718925775261,0.08489636,65105.0,65104.0,0.02]
[1718925775534,0.08489636,65105.0,65101.0,0.000946]
[1718925775709,0.0746,65102.0,65101.0,0.000946]
[1718925776218,0.11078695,65102.0,65101.0,0.000946]
[1718925777011,0.11378695,65102.0,65101.0,0.000946]
[1718925777839,0.08590276,65102.0,65101.0,0.000946]
[1718925778038,0.11383563,65102.0,65101.0,0.000946]
[1718925778662,0.11683563,65102.0,65101.0,0.000946]
[1718925781175,0.11713847,65102.0,65101.0,0.000946]
[1718925784297,0.11668461,65102.0,65101.0,0.000946]
[1718925785231,0.11368461,65102.0,65101.0,0.000946]
[1718925786394,0.11068461,65102.0,65101.0,0.000946]
[1718925786509,0.26724573,65102.0,65101.0,0.000946]
[1718925786738,0.31383486,65102.0,65101.0,0.000946]
[1718925787263,0.31083486,65102.0,65101.0,0.000946]
[1718925787466,0.30983486,65102.0,65101.0,0.000946]
[1718925787704,0.29458275,65102.0,65101.0,0.000946]
[1718925788352,0.29858275,65102.0,65101.0,0.000946]
[1718925789418,0.29858275,65102.0,65095.0,0.00027708]
[1718925789602,0.0746,65096.0,65095.0,0.00027708]
[1718925789824,0.10238185,65096.0,65094.0,0.00207907]
[1718925789999,0.02778185,65095.0,65094.0,0.00207907]
[1718925790399,0.03600532,65095.0,65091.0,0.2085]
[1718925790603,0.0746,65092.0,65091.0,0.2085]
[1718925790792,0.02778185,65092.0,65091.0,0.26506454]
[1718925791394,0.10238185,65092.0,65091.0,0.2085]
[1718925791591,0.10238185,65092.0,65091.0,0.2135]
[1718925791795,0.03600532,65092.0,65091.0,0.24506454]
[1718925792012,0.11060532,65092.0,65091.0,0.24506454]
[1718925792252,0.10238185,65092.0,65091.0,0.24506454]
[1718925792465,0.03600532,65092.0,65091.0,0.24506454]
[1718925792756,0.10238185,65092.0,65091.0,0.24506454]
[1718925792892,0.02778185,65092.0,65091.0,0.24506454]
[1718925793098,0.10238185,65092.0,65091.0,0.24506454]
[1718925793417,0.11160671,65092.0,65091.0,0.25406454]
[1718925793616,0.08382486,65092.0,65091.0,0.25406454]
[1718925793818,0.10928032,65092.0,65091.0,0.26406454]
[1718925794022,0.10205546,65092.0,65091.0,0.26406454]
[1718925794252,0.11028032,65092.0,65091.0,0.26406454]
[1718925794451,0.11028032,65092.0,65091.0,0.019]
[1718925794654,0.12130835,65092.0,65091.0,0.019]
[1718925795588,0.04670835,65092.0,65091.0,0.019]
[1718925795789,0.11028032,65092.0,65091.0,0.019]
[1718925796000,0.10205546,65092.0,65091.0,0.019]
[1718925796230,0.11079019,65092.0,65091.0,0.019]
[1718925796445,0.11079019,65092.0,65089.0,0.00948199]
[1718925796655,0.02422949,65091.0,65089.0,0.00621884]
[1718925796859,0.02422949,65090.0,65089.0,0.21461884]
[1718925796971,0.0329621,65090.0,65089.0,0.21461884]
[1718925797581,0.0329621,65090.0,65089.0,0.19561884]
[1718925797783,0.0329621,65090.0,65088.0,0.00948199]
[1718925797981,0.09882949,65089.0,65088.0,0.00948199]
[1718925798192,0.09882949,65089.0,65088.0,0.10228199]
[1718925798425,0.10756422,65089.0,65088.0,0.10228199]
[1718925799038,0.03296422,65089.0,65088.0,0.10228199]
[1718925799228,0.10756422,65089.0,65088.0,0.10228199]
[1718925799415,0.09882949,65089.0,65088.0,0.10228199]
[1718925799613,0.03301625,65089.0,65088.0,0.21512825]
[1718925799815,0.10860233,65089.0,65088.0,0.23512825]
[1718925800084,0.09981557,65089.0,65088.0,0.23512825]
[1718925800214,0.10860773,65089.0,65088.0,0.23512825]
[1718925800647,0.10860773,65089.0,65088.0,0.35782825]
[1718925801010,0.10960773,65089.0,65088.0,0.35782825]
[1718925801562,0.10960773,65089.0,65088.0,0.28154653]
[1718925802008,0.11060773,65089.0,65088.0,0.28154653]
[1718925803022,0.11149785,65089.0,65088.0,0.28154653]
[1718925806121,0.11195504,65089.0,65088.0,0.28154653]
[1718925807351,0.00878868,65089.0,65088.0,0.28154653]
[1718925807779,0.12355191,65107.0,65094.0,0.03656454]
[1718925807984,0.0746,65095.0,65094.0,0.03656454]
[1718925808396,0.08192332,65095.0,65094.0,0.03656454]
[1718925809239,0.08192332,65095.0,65092.0,0.15026454]
[1718925809475,0.08192332,65095.0,65092.0,0.1137]
[1718925809476,0.0746,65095.0,65092.0,0.1137]
[1718925809688,0.0746,65095.0,65094.0,0.03656454]
[1718925810511,0.0746,65095.0,65094.0,0.03756454]
[1718925812162,0.0746,65095.0,65094.0,0.03856454]
[1718925813961,0.0746,65095.0,65094.0,0.002]
[1718925814616,0.0746,65095.0,65094.0,0.03856454]
[1718925814820,0.0746,65095.0,65094.0,0.002]
[1718925815632,0.13046188,65106.0,65094.0,0.002]
[1718925815832,0.0746,65095.0,65094.0,0.002]
[1718925816038,0.07045433,65107.0,65102.0,0.03656454]
[1718925816245,0.07045433,65107.0,65103.0,0.1225]
[1718925816448,0.0746,65103.0,65099.0,0.1225]
[1718925816779,0.0746,65100.0,65099.0,0.1225]
[1718925817015,0.0746,65100.0,65099.0,0.15906454]
[1718925817402,0.08903079,65100.0,65099.0,0.15906454]
[1718925817592,0.08903079,65100.0,65099.0,0.1225]
[1718925818155,0.08989079,65100.0,65099.0,0.1225]
[1718925818557,0.01529079,65100.0,65099.0,0.45074626]
[1718925818802,0.01542168,65100.0,65099.0,0.60330738]
[1718925819783,0.02142168,65100.0,65099.0,0.60330738]
[1718925820141,0.01542168,65100.0,65099.0,0.62524995]
[1718925820350,0.01642168,65100.0,65099.0,0.62624995]
[1718925820554,0.01642168,65100.0,65099.0,0.62824995]
[1718925821449,0.01642168,65100.0,65099.0,0.62624995]
[1718925821651,0.01642168,65100.0,65099.0,0.62824995]
[1718925821652,0.01742168,65100.0,65099.0,0.62824995]
[1718925821856,0.01642168,65100.0,65099.0,0.62724995]
[1718925822059,0.16268933,65129.0,65114.0,0.24006454]
[1718925822060,0.0009,65125.0,65114.0,0.24006454]
[1718925822386,0.08993395,65115.0,65114.0,0.24006454]
[1718925823934,0.0746,65115.0,65114.0,0.24006454]
[1718925824542,0.0796,65115.0,65114.0,0.24006454]
[1718925824872,0.09446309,65115.0,65114.0,0.24006454]
[1718925825068,0.10046309,65115.0,65114.0,0.24006454]
[1718925826288,0.0856,65115.0,65114.0,0.24006454]
[1718925828612,0.0856,65115.0,65114.0,0.2035]
[1718925828854,0.0856,65115.0,65114.0,0.24006454]
[1718925831245,0.0856,65115.0,65114.0,0.26006454]
[1718925831467,0.0856,65115.0,65114.0,0.36006454]
[1718925833741,0.0856,65115.0,65111.0,0.1]
[1718925833960,0.0746,65112.0,65111.0,0.08046598]
[1718925836260,0.011,65115.0,65111.0,0.08046598]
[1718925836465,0.07117878,65116.0,65112.0,0.24286454]
[1718925836757,0.0746,65113.0,65112.0,0.23986454]
[1718925837855,0.0776,65113.0,65112.0,0.23986454]
[1718925839869,0.0806,65113.0,65112.0,0.23986454]
[1718925841338,0.09773542,65113.0,65112.0,0.23986454]
[1718925842529,0.09740859,65113.0,65112.0,0.23986454]
[1718925842738,0.09740859,65113.0,65111.0,0.08046598]
[1718925842912,0.01680859,65112.0,65111.0,0.08046598]
[1718925844107,0.01880859,65112.0,65111.0,0.08046598]
[1718925844892,0.01980859,65112.0,65111.0,0.08046598]
[1718925845849,0.01859798,65112.0,65111.0,0.08046598]
[1718925848958,0.003,65112.0,65111.0,0.08046598]
[1718925849175,0.01920401,65112.0,65111.0,0.08046598]
[1718925850404,0.01920401,65112.0,65111.0,0.08141198]
[1718925852223,0.0186474,65112.0,65111.0,0.08141198]
[1718925854531,0.0932474,65112.0,65111.0,0.08141198]
[1718925855345,0.0756,65112.0,65111.0,0.08141198]
[1718925855569,0.09313266,65112.0,65111.0,0.08141198]
[1718925855759,0.09513164,65112.0,65111.0,0.08141198]
[1718925856382,0.09413164,65112.0,65111.0,0.08141198]
[1718925856584,0.09513164,65112.0,65111.0,0.08141198]
[1718925856723,0.08513164,65112.0,65111.0,0.08141198]
[1718925856925,0.08413164,65112.0,65111.0,0.08141198]
[1718925857128,0.08213164,65112.0,65111.0,0.08141198]
[1718925857329,0.08513164,65112.0,65111.0,0.08141198]
[1718925858505,0.09513164,65112.0,65111.0,0.11797652]
[1718925858739,0.09484594,65112.0,65111.0,0.11797652]
[1718925859264,0.09484594,65112.0,65111.0,0.13797652]
[1718925859888,0.09384594,65112.0,65111.0,0.36187652]
[1718925860093,0.01924594,65112.0,65111.0,0.55062529]
[1718925860293,0.01824594,65112.0,65111.0,0.56062529]
[1718925860497,0.02024594,65112.0,65111.0,0.56062529]
[1718925860702,0.01924594,65112.0,65111.0,0.56062529]
[1718925860902,0.01724594,65112.0,65111.0,0.56062529]
[1718925861102,0.02024594,65112.0,65111.0,0.56062529]
[1718925861559,0.01824594,65112.0,65111.0,0.56062529]
[1718925861747,0.002,65112.0,65111.0,0.56462529]
[1718925861916,0.01844312,65112.0,65111.0,0.56462529]
[1718925862411,0.01744312,65112.0,65111.0,0.56462529]
[1718925862612,0.01744312,65112.0,65111.0,0.56862529]
[1718925862811,0.01844312,65112.0,65111.0,0.56862529]
[1718925863722,0.01844312,65112.0,65111.0,0.53243764]
[1718925865050,0.01806433,65112.0,65111.0,0.53243764]
[1718925865947,0.01799285,65112.0,65111.0,0.53243764]
[1718925866160,0.01699285,65112.0,65111.0,0.52843764]
[1718925866306,0.01699285,65112.0,65111.0,0.6154814]
[1718925866507,0.01799285,65112.0,65111.0,0.6154814]
[1718925866687,0.02760378,65123.0,65111.0,0.6154814]
[1718925866688,0.03188933,65139.0,65128.0,0.03656454]
[1718925866892,0.04062452,65142.0,65128.0,0.03656454]
[1718925866893,0.0746,65129.0,65128.0,0.03656454]
[1718925867409,0.0746,65129.0,65128.0,0.11703052]
[1718925869198,0.0816,65129.0,65128.0,0.11803052]
[1718925869395,0.0816,65129.0,65128.0,0.11903052]
[1718925869825,0.0816,65129.0,65128.0,0.11803052]
[1718925870137,0.0876,65129.0,65128.0,0.11903052]
[1718925871866,0.013,65129.0,65128.0,0.13903052]
[1718925872073,0.013,65129.0,65128.0,0.56306712]
[1718925872968,0.007,65129.0,65128.0,0.56206712]
[1718925873375,0.0816,65129.0,65128.0,0.56506712]
[1718925873773,0.0816,65129.0,65128.0,0.60529446]
[1718925874092,0.0746,65129.0,65128.0,0.60729446]
[1718925874436,0.0746,65129.0,65128.0,0.56706712]
[1718925874576,0.0746,65129.0,65128.0,0.56406712]
[1718925874963,0.0746,65129.0,65128.0,0.56706712]
[1718925875386,0.0746,65129.0,65128.0,0.56406712]
[1718925875582,0.07450231,65140.0,65136.0,0.03656454]
[1718925875783,0.0746,65137.0,65136.0,0.03656454]
[1718925876628,0.0746,65137.0,65135.0,0.03656454]
[1718925876859,0.0746,65137.0,65136.0,0.03656454]
[1718925877007,0.08914172,65137.0,65136.0,0.03656454]